[Event "Early-Titled-Tuesday-Blitz-March-26-2024"]
[Site "Chess.com"]
[Date "2024.03.26"]
[Round "2"]
[White "Irina_Mikhaylova"]
[Black "TangerineandLemon25"]
[Result "1-0"]
[WhiteElo "2307"]
[BlackElo "2587"]
[TimeControl "180+1"]
[EndTime "8:18:21 PDT"]
[Termination "Irina_Mikhaylova won by resignation"]

1. d4 {[%clk 0:03:00.9]} 1... d5 {[%clk 0:02:58.4]} 2. Nf3 {[%clk 0:03:01.1]}
2... e6 {[%clk 0:02:58.3]} 3. c4 {[%clk 0:03:01.1]} 3... a6 {[%clk 0:02:58.6]}
4. cxd5 {[%clk 0:02:57.8]} 4... exd5 {[%clk 0:02:59.5]} 5. Nc3 {[%clk
0:02:58.2]} 5... h6 {[%clk 0:03:00.1]} 6. Bf4 {[%clk 0:02:57.9]} 6... Nf6 {[%clk
0:03:00.7]} 7. e3 {[%clk 0:02:58.2]} 7... Bd6 {[%clk 0:03:01.3]} 8. Bxd6 {[%clk
0:02:58.2]} 8... Qxd6 {[%clk 0:03:02.2]} 9. Bd3 {[%clk 0:02:57.6]} 9... O-O
{[%clk 0:03:02.5]} 10. Ne5 {[%clk 0:02:57.9]} 10... c5 {[%clk 0:03:01.6]} 11.
O-O {[%clk 0:02:57.2]} 11... c4 {[%clk 0:02:57.4]} 12. Be2 {[%clk 0:02:51.7]}
12... b5 {[%clk 0:02:58]} 13. a3 {[%clk 0:02:47]} 13... Ne4 {[%clk 0:02:51.8]}
14. Rc1 {[%clk 0:02:35.4]} 14... Nxc3 {[%clk 0:02:41.9]} 15. Rxc3 {[%clk
0:02:34.3]} 15... a5 {[%clk 0:02:42.4]} 16. Rc1 {[%clk 0:02:28.7]} 16... b4
{[%clk 0:02:38.9]} 17. axb4 {[%clk 0:02:22]} 17... axb4 {[%clk 0:02:39.8]} 18.
Ra1 {[%clk 0:02:21.8]} 18... Rxa1 {[%clk 0:02:26]} 19. Qxa1 {[%clk 0:02:22.7]}
19... Qb6 {[%clk 0:02:26.2]} 20. Qa4 {[%clk 0:02:16.6]} 20... f6 {[%clk
0:02:12]} 21. Ng6 {[%clk 0:01:59.4]} 21... Rd8 {[%clk 0:01:59.4]} 22. Ra1 {[%clk
0:01:53.9]} 22... Kf7 {[%clk 0:01:37.4]} 23. Bh5 {[%clk 0:01:47.6]} 23... Kg8
{[%clk 0:01:37.1]} 24. Ne7+ {[%clk 0:01:22.2]} 24... Kf8 {[%clk 0:01:28.6]} 25.
Nxd5 {[%clk 0:01:04.3]} 25... Qd6 {[%clk 0:00:49.5]} 26. Qxb4 {[%clk 0:00:57]}
26... Be6 {[%clk 0:00:45.1]} 27. Qxd6+ {[%clk 0:00:49]} 27... Rxd6 {[%clk
0:00:46]} 28. Nf4 {[%clk 0:00:47.7]} 28... Bf7 {[%clk 0:00:44]} 29. Bxf7 {[%clk
0:00:37.9]} 29... Kxf7 {[%clk 0:00:44.9]} 30. Rc1 {[%clk 0:00:37.7]} 30... Rb6
{[%clk 0:00:41.8]} 31. Rxc4 {[%clk 0:00:34.2]} 31... Rxb2 {[%clk 0:00:41.8]} 32.
Rc7+ {[%clk 0:00:33.6]} 32... Ke8 {[%clk 0:00:31.1]} 33. h4 {[%clk 0:00:32.6]}
33... Nd7 {[%clk 0:00:30]} 34. Ne6 {[%clk 0:00:30.6]} 34... g6 {[%clk
0:00:26.1]} 35. Nc5 {[%clk 0:00:28.2]} 35... Rb1+ {[%clk 0:00:18.8]} 36. Kh2
{[%clk 0:00:28]} 36... Nxc5 {[%clk 0:00:18.1]} 37. dxc5 {[%clk 0:00:23.4]} 37...
Rc1 {[%clk 0:00:14.3]} 38. c6 {[%clk 0:00:22.1]} 38... Rc4 {[%clk 0:00:13.4]}
39. Kg3 {[%clk 0:00:21.3]} 39... Kf8 {[%clk 0:00:12.2]} 40. f4 {[%clk
0:00:17.6]} 40... g5 {[%clk 0:00:10.3]} 41. hxg5 {[%clk 0:00:17.2]} 41... hxg5
{[%clk 0:00:11.2]} 42. Kf3 {[%clk 0:00:17.3]} 42... Kg8 {[%clk 0:00:10.4]} 43.
g4 {[%clk 0:00:17.1]} 43... Kf8 {[%clk 0:00:10.3]} 44. Rc8+ {[%clk 0:00:15]}
44... Kg7 {[%clk 0:00:10.3]} 45. Rc7+ {[%clk 0:00:15.3]} 45... Kf8 {[%clk
0:00:10.1]} 46. f5 {[%clk 0:00:15.8]} 46... Kg8 {[%clk 0:00:09.6]} 47. Kg3
{[%clk 0:00:15.3]} 47... Kf8 {[%clk 0:00:09.8]} 48. Kf3 {[%clk 0:00:15.7]} 48...
Ke8 {[%clk 0:00:10.1]} 49. e4 {[%clk 0:00:16]} 49... Kd8 {[%clk 0:00:10]} 50.
Rd7+ {[%clk 0:00:15.8]} 50... Ke8 {[%clk 0:00:10.6]} 51. Rd6 {[%clk 0:00:16.2]}
51... Ke7 {[%clk 0:00:11.5]} 52. Re6+ {[%clk 0:00:16.5]} 52... Kf7 {[%clk
0:00:12.4]} 53. Ke3 {[%clk 0:00:16.8]} 53... Rc1 {[%clk 0:00:12.9]} 54. Kd4
{[%clk 0:00:17.1]} 54... Rg1 {[%clk 0:00:12.1]} 55. c7 {[%clk 0:00:16.7]} 55...
Rxg4 {[%clk 0:00:12.1]} 56. c8=Q {[%clk 0:00:16.6]} 56... Rg1 {[%clk 0:00:12.8]}
57. Qd7+ {[%clk 0:00:16.7]} 1-0

[Event "Early-Titled-Tuesday-Blitz-March-26-2024"]
[Site "Chess.com"]
[Date "2024.03.26"]
[Round "2"]
[White "superchess02"]
[Black "Boorchess"]
[Result "1-0"]
[WhiteElo "2852"]
[BlackElo "2573"]
[TimeControl "180+1"]
[EndTime "8:18:22 PDT"]
[Termination "superchess02 won by resignation"]

1. d4 {[%clk 0:03:00.9]} 1... Nf6 {[%clk 0:02:59.2]} 2. c4 {[%clk 0:03:00.6]}
2... e6 {[%clk 0:02:58.9]} 3. Nc3 {[%clk 0:03:00.8]} 3... Bb4 {[%clk 0:02:58.4]}
4. a3 {[%clk 0:03:01.3]} 4... Bxc3+ {[%clk 0:02:58.1]} 5. bxc3 {[%clk
0:03:02.2]} 5... c5 {[%clk 0:02:57.9]} 6. e3 {[%clk 0:03:02.8]} 6... d6 {[%clk
0:02:57.5]} 7. Bd3 {[%clk 0:03:03.4]} 7... Nc6 {[%clk 0:02:57.5]} 8. Ne2 {[%clk
0:03:04]} 8... e5 {[%clk 0:02:57.3]} 9. O-O {[%clk 0:03:03.9]} 9... b6 {[%clk
0:02:56.8]} 10. f4 {[%clk 0:03:02.5]} 10... h6 {[%clk 0:02:55.6]} 11. Ng3 {[%clk
0:02:55.9]} 11... Qe7 {[%clk 0:02:54.6]} 12. fxe5 {[%clk 0:02:52]} 12... dxe5
{[%clk 0:02:54.5]} 13. d5 {[%clk 0:02:52.7]} 13... Na5 {[%clk 0:02:54.5]} 14. e4
{[%clk 0:02:53.3]} 14... Kd8 {[%clk 0:02:52.3]} 15. Be3 {[%clk 0:02:38.9]} 15...
Ne8 {[%clk 0:02:50.7]} 16. Qf3 {[%clk 0:02:07.2]} 16... Nd6 {[%clk 0:02:48.7]}
17. Nh5 {[%clk 0:02:07.7]} 17... f6 {[%clk 0:02:47.9]} 18. Qg3 {[%clk
0:02:05.3]} 18... Naxc4 {[%clk 0:02:25.5]} 19. Bc1 {[%clk 0:01:49.5]} 19... Ba6
{[%clk 0:01:41.9]} 20. Nxg7 {[%clk 0:01:32.2]} 20... Rg8 {[%clk 0:01:39.3]} 21.
Ne6+ {[%clk 0:01:18.9]} 21... Kd7 {[%clk 0:01:33.6]} 22. Qh3 {[%clk 0:01:17.7]}
22... f5 {[%clk 0:01:24.9]} 23. exf5 {[%clk 0:01:05.7]} 23... Qf6 {[%clk
0:01:23]} 24. Qxh6 {[%clk 0:01:05.1]} 24... Qxh6 {[%clk 0:00:49.9]} 25. Bxh6
{[%clk 0:01:06]} 25... Ne3 {[%clk 0:00:27.3]} 26. Bxa6 {[%clk 0:00:19.7]} 26...
Rxg2+ {[%clk 0:00:26]} 27. Kh1 {[%clk 0:00:20.2]} 27... Rh8 {[%clk 0:00:26.5]}
28. Rg1 {[%clk 0:00:20.3]} 28... Rxh6 {[%clk 0:00:23.9]} 29. Rxg2 {[%clk
0:00:20.1]} 29... Nxg2 {[%clk 0:00:16.6]} 30. Kxg2 {[%clk 0:00:20.6]} 30... Nxf5
{[%clk 0:00:16.1]} 31. Rg1 {[%clk 0:00:18.8]} 31... Ne3+ {[%clk 0:00:14.5]} 32.
Kf3 {[%clk 0:00:17.7]} 32... Nxd5 {[%clk 0:00:14.8]} 33. Bc4 {[%clk 0:00:15.4]}
33... Nxc3 {[%clk 0:00:12]} 34. Rg7+ {[%clk 0:00:13.7]} 34... Kd6 {[%clk
0:00:12.4]} 35. Ng5 {[%clk 0:00:11.4]} 35... Rf6+ {[%clk 0:00:11.1]} 36. Ke3
{[%clk 0:00:10.4]} 36... b5 {[%clk 0:00:11.3]} 37. Bxb5 {[%clk 0:00:07.9]} 37...
Nxb5 {[%clk 0:00:10.9]} 38. Ne4+ {[%clk 0:00:08.1]} 38... Ke6 {[%clk 0:00:11]}
39. Nxf6 {[%clk 0:00:08.6]} 39... Kxf6 {[%clk 0:00:11.1]} 40. Rb7 {[%clk
0:00:08.1]} 40... a6 {[%clk 0:00:09]} 41. a4 {[%clk 0:00:07.5]} 41... Nc3 {[%clk
0:00:07.9]} 42. a5 {[%clk 0:00:07.5]} 42... Kf5 {[%clk 0:00:07.8]} 43. Rb6
{[%clk 0:00:07.1]} 43... Nd5+ {[%clk 0:00:06.8]} 44. Kd2 {[%clk 0:00:07.6]}
44... e4 {[%clk 0:00:06.7]} 45. Rxa6 {[%clk 0:00:07.5]} 45... c4 {[%clk
0:00:07.3]} 46. Rc6 {[%clk 0:00:07.2]} 46... e3+ {[%clk 0:00:05.9]} 47. Ke2
{[%clk 0:00:05.7]} 47... c3 {[%clk 0:00:06.2]} 48. a6 {[%clk 0:00:06.2]} 48...
Ke4 {[%clk 0:00:06]} 49. Rc4+ {[%clk 0:00:06.5]} 49... Ke5 {[%clk 0:00:06]} 50.
a7 {[%clk 0:00:07.3]} 50... Nf4+ {[%clk 0:00:05.1]} 51. Kxe3 {[%clk 0:00:07.6]}
1-0

[Event "Early-Titled-Tuesday-Blitz-March-26-2024"]
[Site "Chess.com"]
[Date "2024.03.26"]
[Round "2"]
[White "Aradhya2000"]
[Black "Knightmare1014"]
[Result "1-0"]
[WhiteElo "2741"]
[BlackElo "2332"]
[TimeControl "180+1"]
[EndTime "8:18:22 PDT"]
[Termination "Aradhya2000 won by resignation"]

1. d4 {[%clk 0:03:00.9]} 1... d5 {[%clk 0:02:59.8]} 2. c4 {[%clk 0:03:00.3]}
2... e6 {[%clk 0:03:00.4]} 3. Nc3 {[%clk 0:02:58.9]} 3... Nf6 {[%clk 0:03:00.7]}
4. cxd5 {[%clk 0:02:59.2]} 4... exd5 {[%clk 0:03:00.8]} 5. Bg5 {[%clk
0:02:59.9]} 5... c6 {[%clk 0:02:57.3]} 6. e3 {[%clk 0:02:59.6]} 6... Be7 {[%clk
0:02:57.2]} 7. Bd3 {[%clk 0:02:59.5]} 7... h6 {[%clk 0:02:57.3]} 8. Bf4 {[%clk
0:02:59]} 8... Nbd7 {[%clk 0:02:53]} 9. h3 {[%clk 0:02:58.8]} 9... Nb6 {[%clk
0:02:48.6]} 10. Nf3 {[%clk 0:02:58.7]} 10... Be6 {[%clk 0:02:45.9]} 11. Qc2
{[%clk 0:02:57.4]} 11... Nc8 {[%clk 0:02:38.8]} 12. O-O {[%clk 0:02:44.6]} 12...
Bd6 {[%clk 0:02:38.1]} 13. Ne5 {[%clk 0:02:43.5]} 13... O-O {[%clk 0:02:37.1]}
14. Bg3 {[%clk 0:02:42.8]} 14... a5 {[%clk 0:02:13.3]} 15. f4 {[%clk 0:02:39.6]}
15... Nh5 {[%clk 0:02:10.3]} 16. Bh2 {[%clk 0:02:37.2]} 16... f5 {[%clk
0:02:10.5]} 17. Kh1 {[%clk 0:01:37.4]} 17... Ne7 {[%clk 0:01:35.2]} 18. Ne2
{[%clk 0:01:24]} 18... Nf6 {[%clk 0:01:34.9]} 19. Ng3 {[%clk 0:01:18]} 19... Ne4
{[%clk 0:01:33.9]} 20. Nxe4 {[%clk 0:01:18.3]} 20... fxe4 {[%clk 0:01:33.2]} 21.
Be2 {[%clk 0:01:18.8]} 21... Nf5 {[%clk 0:01:29.8]} 22. Qd2 {[%clk 0:01:18.2]}
22... Bb4 {[%clk 0:01:21.4]} 23. Qd1 {[%clk 0:01:17.7]} 23... Nxe3 {[%clk
0:01:20.9]} 24. Qc1 {[%clk 0:01:16.4]} 24... Nxf1 {[%clk 0:01:20.8]} 25. Qxf1
{[%clk 0:01:17.3]} 25... Qf6 {[%clk 0:01:17.8]} 26. g4 {[%clk 0:01:12.7]} 26...
Bd6 {[%clk 0:01:15.2]} 27. f5 {[%clk 0:01:12.3]} 27... Bc8 {[%clk 0:01:13.1]}
28. Rc1 {[%clk 0:00:58.4]} 28... Re8 {[%clk 0:01:10.1]} 29. Qf4 {[%clk
0:00:57.5]} 29... Qg5 {[%clk 0:00:54.9]} 30. Qf1 {[%clk 0:00:57.3]} 30... Bxe5
{[%clk 0:00:51.3]} 31. dxe5 {[%clk 0:00:56.7]} 31... d4 {[%clk 0:00:47.8]} 32.
Bc4+ {[%clk 0:00:54.6]} 32... Kh8 {[%clk 0:00:46.6]} 33. Re1 {[%clk 0:00:39.9]}
33... b5 {[%clk 0:00:44.3]} 34. Bf7 {[%clk 0:00:39.7]} 34... Re7 {[%clk
0:00:40.6]} 35. e6 {[%clk 0:00:39.8]} 35... e3 {[%clk 0:00:38.5]} 36. Bd6 {[%clk
0:00:34.9]} 36... Bb7 {[%clk 0:00:34.4]} 37. Kh2 {[%clk 0:00:30.9]} 37... Rd8
{[%clk 0:00:29.1]} 38. Bxe7 {[%clk 0:00:28.8]} 38... Qxe7 {[%clk 0:00:29.1]} 39.
Qf4 {[%clk 0:00:28.1]} 39... c5 {[%clk 0:00:28.3]} 40. Kg3 {[%clk 0:00:23.3]}
40... Ba8 {[%clk 0:00:23.5]} 41. h4 {[%clk 0:00:21.5]} 41... Qb7 {[%clk
0:00:22.3]} 42. Rg1 {[%clk 0:00:21.7]} 42... e2 {[%clk 0:00:22.1]} 43. Kf2
{[%clk 0:00:13.9]} 43... d3 {[%clk 0:00:21.2]} 44. f6 {[%clk 0:00:14.3]} 44...
Qf3+ {[%clk 0:00:18]} 45. Qxf3 {[%clk 0:00:14.1]} 45... Bxf3 {[%clk 0:00:18]}
46. fxg7+ {[%clk 0:00:14]} 46... Kxg7 {[%clk 0:00:17.9]} 47. e7 {[%clk
0:00:14.2]} 47... e1=Q+ {[%clk 0:00:15.2]} 48. Rxe1 {[%clk 0:00:12.4]} 48... d2
{[%clk 0:00:13.7]} 49. exd8=Q {[%clk 0:00:11.4]} 49... dxe1=Q+ {[%clk
0:00:13.9]} 50. Kxe1 {[%clk 0:00:11.6]} 50... Bxg4 {[%clk 0:00:10.1]} 51. Qg8+
{[%clk 0:00:10.8]} 1-0

[Event "Early-Titled-Tuesday-Blitz-March-26-2024"]
[Site "Chess.com"]
[Date "2024.03.26"]
[Round "2"]
[White "Zurability"]
[Black "Sina_Movahed"]
[Result "1-0"]
[WhiteElo "2724"]
[BlackElo "3078"]
[TimeControl "180+1"]
[EndTime "8:18:23 PDT"]
[Termination "Zurability won on time"]

1. Nf3 {[%clk 0:03:00.9]} 1... Nf6 {[%clk 0:02:50]} 2. g3 {[%clk 0:02:59.4]}
2... g6 {[%clk 0:02:50.5]} 3. Bg2 {[%clk 0:02:58.3]} 3... Bg7 {[%clk 0:02:50.9]}
4. O-O {[%clk 0:02:59.2]} 4... O-O {[%clk 0:02:51.3]} 5. d4 {[%clk 0:03:00]}
5... d6 {[%clk 0:02:51.2]} 6. c4 {[%clk 0:02:57]} 6... Nbd7 {[%clk 0:02:51.4]}
7. Nc3 {[%clk 0:02:57]} 7... e5 {[%clk 0:02:52]} 8. e4 {[%clk 0:02:56.7]} 8...
exd4 {[%clk 0:02:52.3]} 9. Nxd4 {[%clk 0:02:57.6]} 9... Nc5 {[%clk 0:02:53]} 10.
h3 {[%clk 0:02:56.4]} 10... Re8 {[%clk 0:02:53.1]} 11. Re1 {[%clk 0:02:56.8]}
11... h6 {[%clk 0:02:53]} 12. Nb3 {[%clk 0:02:49.3]} 12... Ne6 {[%clk
0:02:51.7]} 13. f4 {[%clk 0:02:39.7]} 13... a5 {[%clk 0:02:50.7]} 14. Be3 {[%clk
0:02:33.4]} 14... a4 {[%clk 0:02:50.6]} 15. Nd2 {[%clk 0:02:33.9]} 15... a3
{[%clk 0:02:49.5]} 16. b3 {[%clk 0:02:32.3]} 16... Nh5 {[%clk 0:02:18.2]} 17.
Ne2 {[%clk 0:02:18]} 17... Bxa1 {[%clk 0:02:17.3]} 18. Qxa1 {[%clk 0:02:18.9]}
18... Qf6 {[%clk 0:01:58.5]} 19. e5 {[%clk 0:02:17.9]} 19... dxe5 {[%clk
0:01:58.5]} 20. fxe5 {[%clk 0:02:18.2]} 20... Qe7 {[%clk 0:01:57.8]} 21. g4
{[%clk 0:02:18.4]} 21... Nhg7 {[%clk 0:01:52.3]} 22. Ne4 {[%clk 0:02:17.6]}
22... Rd8 {[%clk 0:01:50]} 23. Nf6+ {[%clk 0:02:05.1]} 23... Kh8 {[%clk
0:00:49.8]} 24. Bxh6 {[%clk 0:01:48.1]} 24... Bd7 {[%clk 0:00:48.9]} 25. Rf1
{[%clk 0:01:38.2]} 25... Bc6 {[%clk 0:00:41.1]} 26. Be3 {[%clk 0:01:03.3]} 26...
Bxg2 {[%clk 0:00:38.2]} 27. Kxg2 {[%clk 0:01:04.2]} 27... Ne8 {[%clk 0:00:21.2]}
28. Nd5 {[%clk 0:01:02]} 28... Qd7 {[%clk 0:00:21.1]} 29. Qe1 {[%clk 0:00:58.1]}
29... Kg8 {[%clk 0:00:15.7]} 30. Qh4 {[%clk 0:00:56.8]} 30... Qc6 {[%clk
0:00:15.7]} 31. Nc3 {[%clk 0:00:47.7]} 31... Rd7 {[%clk 0:00:07.3]} 32. Kg1
{[%clk 0:00:47.9]} 32... Rad8 {[%clk 0:00:07.4]} 33. Ne7+ {[%clk 0:00:39.1]}
33... Rxe7 {[%clk 0:00:07.5]} 34. Qxe7 {[%clk 0:00:40]} 34... Qd7 {[%clk
0:00:07.3]} 35. Qxa3 {[%clk 0:00:29.5]} 35... Qd3 {[%clk 0:00:07]} 36. Qc1
{[%clk 0:00:30]} 36... Nd4 {[%clk 0:00:06.1]} 37. Kf2 {[%clk 0:00:20.5]} 37...
Nc2 {[%clk 0:00:04.4]} 38. Rd1 {[%clk 0:00:18.6]} 38... Nb4 {[%clk 0:00:04.4]}
39. Kf3 {[%clk 0:00:15.3]} 39... Qxd1+ {[%clk 0:00:01.8]} 40. Nxd1 {[%clk
0:00:14.8]} 40... Nd3 {[%clk 0:00:02.7]} 41. Qb1 {[%clk 0:00:14.4]} 41... c6
{[%clk 0:00:03.6]} 42. Ke2 {[%clk 0:00:14.5]} 42... Nxe5 {[%clk 0:00:03.4]} 43.
Nc3 {[%clk 0:00:14.9]} 43... Nc7 {[%clk 0:00:03.3]} 44. Ne4 {[%clk 0:00:15.1]}
44... Kf8 {[%clk 0:00:02.7]} 45. Bc5+ {[%clk 0:00:14.4]} 45... Kg8 {[%clk
0:00:02.5]} 46. Qb2 {[%clk 0:00:13.6]} 46... Nd3 {[%clk 0:00:02.8]} 47. Nf6+
{[%clk 0:00:12.4]} 47... Kg7 {[%clk 0:00:02.5]} 48. Nh5+ {[%clk 0:00:12]} 48...
Kh6 {[%clk 0:00:02.8]} 49. Qg7+ {[%clk 0:00:12.5]} 49... Kg5 {[%clk 0:00:03.7]}
50. Be7+ {[%clk 0:00:12.8]} 50... f6 {[%clk 0:00:03]} 51. Qxf6+ {[%clk
0:00:13.1]} 51... Kh6 {[%clk 0:00:03]} 52. Bxd8 {[%clk 0:00:11]} 1-0

[Event "Early-Titled-Tuesday-Blitz-March-26-2024"]
[Site "Chess.com"]
[Date "2024.03.26"]
[Round "2"]
[White "DonkyDonkyDonkey"]
[Black "Let_it_be_1"]
[Result "0-1"]
[WhiteElo "2972"]
[BlackElo "2672"]
[TimeControl "180+1"]
[EndTime "8:18:25 PDT"]
[Termination "Let_it_be_1 won by resignation"]

1. e4 {[%clk 0:03:00.9]} 1... e6 {[%clk 0:02:59.9]} 2. d4 {[%clk 0:02:59.9]}
2... d5 {[%clk 0:03:00.5]} 3. e5 {[%clk 0:03:00.5]} 3... c5 {[%clk 0:03:00.4]}
4. c3 {[%clk 0:03:01.1]} 4... Qb6 {[%clk 0:03:00.2]} 5. Nf3 {[%clk 0:03:01.7]}
5... Nc6 {[%clk 0:03:00.6]} 6. Bd3 {[%clk 0:03:02.1]} 6... cxd4 {[%clk 0:03:00]}
7. cxd4 {[%clk 0:03:03]} 7... Bd7 {[%clk 0:02:58.2]} 8. O-O {[%clk 0:03:03.2]}
8... Nxd4 {[%clk 0:02:57.7]} 9. Nbd2 {[%clk 0:03:03.7]} 9... Bc5 {[%clk
0:02:51.3]} 10. Nxd4 {[%clk 0:03:03.2]} 10... Bxd4 {[%clk 0:02:51.5]} 11. Nf3
{[%clk 0:03:04]} 11... Ne7 {[%clk 0:02:50.7]} 12. Qe2 {[%clk 0:03:01.2]} 12...
Nc6 {[%clk 0:02:38.4]} 13. Rd1 {[%clk 0:03:01.7]} 13... Bc5 {[%clk 0:02:33.2]}
14. a3 {[%clk 0:03:00.6]} 14... a5 {[%clk 0:02:31.7]} 15. Bf4 {[%clk 0:03:00.5]}
15... h6 {[%clk 0:02:29.6]} 16. h4 {[%clk 0:02:59.7]} 16... Nd4 {[%clk
0:02:23.6]} 17. Nxd4 {[%clk 0:02:58.2]} 17... Bxd4 {[%clk 0:02:23.8]} 18. Qg4
{[%clk 0:02:56.4]} 18... Kf8 {[%clk 0:02:21.8]} 19. Bg3 {[%clk 0:02:54]} 19...
Rc8 {[%clk 0:01:57.1]} 20. Qf4 {[%clk 0:02:48.6]} 20... Bxb2 {[%clk 0:01:41.7]}
21. Rab1 {[%clk 0:02:48.3]} 21... Qd4 {[%clk 0:01:11.7]} 22. Qf3 {[%clk
0:02:47.6]} 22... Qc3 {[%clk 0:00:41.4]} 23. Bf4 {[%clk 0:02:18.7]} 23... Qxa3
{[%clk 0:00:34.6]} 24. Be3 {[%clk 0:02:09]} 24... Bc6 {[%clk 0:00:23.1]} 25. Bg6
{[%clk 0:02:08.6]} 25... Rc7 {[%clk 0:00:20]} 26. Qf4 {[%clk 0:01:51.5]} 26...
Kg8 {[%clk 0:00:13.9]} 27. Bd3 {[%clk 0:01:38.4]} 27... Ba4 {[%clk 0:00:10.5]}
28. Rd2 {[%clk 0:01:25.4]} 28... Rc1+ {[%clk 0:00:10.6]} 29. Kh2 {[%clk
0:01:20.3]} 29... Rxb1 {[%clk 0:00:08.4]} 30. Bxb1 {[%clk 0:01:21.2]} 30... Bc3
{[%clk 0:00:08.6]} 31. Rd3 {[%clk 0:01:20.7]} 31... Qb4 {[%clk 0:00:08.7]} 32.
Qg3 {[%clk 0:01:20]} 32... Qxb1 {[%clk 0:00:06.3]} 33. Rxc3 {[%clk 0:01:19.3]}
33... Bc6 {[%clk 0:00:07]} 34. h5 {[%clk 0:01:18.5]} 34... Kh7 {[%clk
0:00:07.1]} 35. Bf4 {[%clk 0:01:15.5]} 35... Qe4 {[%clk 0:00:07.2]} 36. Re3
{[%clk 0:01:15]} 36... Qf5 {[%clk 0:00:07.2]} 37. Qh4 {[%clk 0:01:15.1]} 37...
d4 {[%clk 0:00:07.3]} 38. Rg3 {[%clk 0:01:15.8]} 38... Rg8 {[%clk 0:00:07.4]}
39. f3 {[%clk 0:01:10.6]} 39... a4 {[%clk 0:00:07.5]} 40. Bd2 {[%clk 0:01:10.3]}
40... a3 {[%clk 0:00:07.5]} 41. Qxd4 {[%clk 0:01:10.2]} 41... Qxh5+ {[%clk
0:00:04.6]} 42. Kg1 {[%clk 0:01:10.7]} 42... Qf5 {[%clk 0:00:04.5]} 43. Qa1
{[%clk 0:01:09.8]} 43... Qc2 {[%clk 0:00:04.3]} 44. Qd4 {[%clk 0:01:04.5]} 44...
a2 {[%clk 0:00:04.4]} 45. Bc3 {[%clk 0:01:04.1]} 45... b5 {[%clk 0:00:04.1]} 46.
Kh2 {[%clk 0:01:04.2]} 46... Bd5 {[%clk 0:00:04.4]} 47. Ba1 {[%clk 0:01:02.3]}
47... Qb1 {[%clk 0:00:04.9]} 48. Bc3 {[%clk 0:00:55.6]} 48... b4 {[%clk
0:00:05.1]} 49. Ba1 {[%clk 0:00:56]} 49... b3 {[%clk 0:00:05.4]} 50. f4 {[%clk
0:00:55.9]} 50... Rc8 {[%clk 0:00:04.9]} 51. f5 {[%clk 0:00:55.5]} 51... Rc4
{[%clk 0:00:04.6]} 52. Qb2 {[%clk 0:00:36.9]} 52... Rh4+ {[%clk 0:00:03.8]} 53.
Rh3 {[%clk 0:00:36.8]} 53... Rxh3+ {[%clk 0:00:04]} 54. Kxh3 {[%clk 0:00:37.7]}
54... Qxb2 {[%clk 0:00:04]} 55. Bxb2 {[%clk 0:00:37.9]} 55... exf5 {[%clk
0:00:04.9]} 56. Kg3 {[%clk 0:00:38.1]} 56... Be6 {[%clk 0:00:05.4]} 57. Kf4
{[%clk 0:00:38.4]} 57... g5+ {[%clk 0:00:06.3]} 58. Ke3 {[%clk 0:00:38.8]} 58...
Kg6 {[%clk 0:00:06.8]} 59. g3 {[%clk 0:00:38.8]} 59... f4+ {[%clk 0:00:07.7]}
60. gxf4 {[%clk 0:00:39.7]} 60... gxf4+ {[%clk 0:00:07.7]} 61. Kxf4 {[%clk
0:00:40.6]} 61... h5 {[%clk 0:00:08.4]} 62. Kg3 {[%clk 0:00:40.6]} 62... Kg5
{[%clk 0:00:08.1]} 63. Bc1+ {[%clk 0:00:40.3]} 63... Kf5 {[%clk 0:00:08.5]} 64.
Bb2 {[%clk 0:00:41.2]} 64... Ke4 {[%clk 0:00:08]} 65. Kh4 {[%clk 0:00:41.9]}
65... Kd3 {[%clk 0:00:08.6]} 66. Kxh5 {[%clk 0:00:42.7]} 66... Kc2 {[%clk
0:00:09.2]} 67. Bd4 {[%clk 0:00:43.5]} 67... b2 {[%clk 0:00:09.7]} 68. Bxb2
{[%clk 0:00:44.3]} 68... Kxb2 {[%clk 0:00:10.2]} 69. Kg5 {[%clk 0:00:45.2]}
69... a1=Q {[%clk 0:00:10.8]} 70. Kf6 {[%clk 0:00:46.1]} 70... Qe1 {[%clk
0:00:11.4]} 71. Kg7 {[%clk 0:00:47]} 71... Qxe5+ {[%clk 0:00:11.9]} 72. Kf8
{[%clk 0:00:47.9]} 72... Qf5 {[%clk 0:00:12.7]} 73. Kg8 {[%clk 0:00:48.8]} 73...
Bd5 {[%clk 0:00:13]} 74. Kh8 {[%clk 0:00:49.7]} 74... Qe6 {[%clk 0:00:13.5]} 75.
Kg7 {[%clk 0:00:50.2]} 75... f5 {[%clk 0:00:14]} 76. Kf8 {[%clk 0:00:51.1]}
76... f4 {[%clk 0:00:14.7]} 77. Kg7 {[%clk 0:00:51.2]} 77... f3 {[%clk
0:00:15.6]} 78. Kh8 {[%clk 0:00:52.1]} 78... f2 {[%clk 0:00:15.7]} 0-1